{"text_format":"1","workbook":"xlsx","n_sheets":1,"sheets":["Pressupost Projecte Aa"],"not_rendered":{"charts":0,"images":2,"macros":1,"external_links":0,"defined_names":6,"comments":1,"pivot_tables":0},"unopened":[],"bounds":{"document_bytes":16777216,"sheet_cells":100000,"rows_first":2000,"rows_last":500,"rows_between":2000,"halvings":0,"cell_chars":16384,"cell_head_chars":4096},"cells_cut":0,"cells_raw":0,"read":"whole","date_system":"1900"}

{"sheet":"Pressupost Projecte Aa","index":0,"n_rows":72,"n_cols":6,"rows_kept":72,"cut":false,"hidden":false,"merged":[[2,2,3,5],[56,2,56,3]]}
[null,null,null,null,null,"Documento básico 3"]
[null,null,null,null,null,"Ámbit temático \"A\": Creación y Consolidación"]
["Subvencions de l'Ajuntament de Barcelona per a",null,"Modalidad \"a\": Creación y transformación: Creación y transformación: Creación de nuevas cooperativas y transformación, a partir de otras formas jurídicas pre-existentes, en cooperativas"]
["la promoció i reforç de l'economia social i solidària 2020"]
[null,null,null,null,null,"Se deben rellenar las celdas en blanco, y añadir filas en caso que sea necesario."]
[null,null,null,null,null,"Consultar anotaciones a pie de página antes de completar los datos."]
[null,null,null,null,null," "]
[null,null,null,null,null," "]
["DATOS BÁSICOS"]
["Nombre de la persona jurídica/física",null,null,null,null,"  "]
["NIF de la persona jurídica/física"]
["Denominación del proyecto"]
["Importe total del proyecto"]
["Importe imputable a la subvención municipal"]
["% de l’Importe solicitado a la subvención municipal a cambiar en REC (Recurs Econòmic Ciutadà) "]
["Importe de l'aportació / Cofinanciación de la entidad",{"$f":"B13-B14","v":0}]
["% de l'Importe solicitado respecto al total del proyecto subvencionable",{"$f":"B14/B13","v":{"$error":"#DIV/0!"}}]
["Fecha de inicio del proyecto subvencionado (dd/mm/aaaa)"]
["Fecha de fin del proyecto subvencionado (dd/mm/aaaa)"]
[]
["PREVISIÓN DE GASTOS DEL PROYECTO SUBVENCIONABLE"]
[]
[]
["Partidas","Importe total del proyecto","Importe imputable a la subvención municipal","Importe de l'aportació / Cofinanciación de la entidad"]
["D.1  Nóminas y seguredad social IRPF (régimen general o régimen de autónomos) del personal propio vinculado al proyecto subvencionable",{"$f":"SUM(DespesesProjecte[[#This Row],[Importe imputable a la subvención municipal]],DespesesProjecte[[#This Row],[Importe de l''aportació / Cofinanciación de la entidad]])","v":0},{"$f":"SUM(C26:C30)","v":0},{"$f":"SUM(D26:D30)","v":0}]
[]
[]
[]
[]
[]
["D.2 Rendimientos anuals netos del empresario/a individual (ver 13.2 bases)",{"$f":"SUM(DespesesProjecte[[#This Row],[Importe imputable a la subvención municipal]],DespesesProjecte[[#This Row],[Importe de l''aportació / Cofinanciación de la entidad]])","v":0},{"$f":"SUM(C32:C37)","v":0},{"$f":"SUM(D32:D37)","v":0}]
[]
[]
[]
[]
[]
[]
["TOTAL DE GASTOS DE PERSONAL (Máx 20% del importe imputable a la subvención municipal)",{"$f":"SUM(B25,B31)","v":0},{"$f":"SUM(C25,C31)","v":0},{"$f":"SUM(D25,D31)","v":0}]
["D.3  Trabajos realizados por profesionales y empresas externas directamente vinculados al proyecto subvencionable",{"$f":"SUM(DespesesProjecte[[#This Row],[Importe imputable a la subvención municipal]],DespesesProjecte[[#This Row],[Importe de l''aportació / Cofinanciación de la entidad]])","v":0},{"$f":"SUM(C40:C44)","v":0},{"$f":"SUM(D40:D44)","v":0}]
[]
[]
[]
[]
[]
["D.4 Gastos de licencias y tasas relacionadas con el inicio de la actividad",{"$f":"SUM(DespesesProjecte[[#This Row],[Importe imputable a la subvención municipal]],DespesesProjecte[[#This Row],[Importe de l''aportació / Cofinanciación de la entidad]])","v":0},{"$f":"SUM(C46:C50)","v":0},{"$f":"SUM(D46:D50)","v":0}]
[]
[]
[]
[]
[]
["TOTAL DE OTROS GASTOS DIRECTOS",{"$f":"SUM(B39,B45)","v":0},{"$f":"SUM(C39,C45)","v":0},0]
["TOTAL GASTOS DIRECTOS (los que se identifiquen directament con el proyecto subvencionable)",{"$f":"SUM(B38,B51)","v":0},{"$f":"SUM(C38,C51)","v":0},0]
[" TOTAL GASTOS PREVISTOS",{"$f":"SUM(B52)","v":0},{"$f":"SUM(C52)","v":0},0]
[]
["Barcelona, "]
[]
["Sello de la entidad",null,"Firma del Presidente/a o persona autorizada"]
[]
[]
[]
["1.  La cuantía de la subvención otorgada no superará el 80% del gasto total del proyecto a subvencionar. "]
["2.  El importe máximo de subvención para la modalidad \"a\" del ámbito temático de Creación  y consoldiación (Aa) es de 7.200 €."]
["3.  En caso que la solicitud presentada sobrepase el importe máximo, se considerará como importe solicitado el máximo de lo establecido en la convocatoria. "]
["4.  Se limita a un  máximo del 20%  el importe de la subvención para gastos de personal propio que participa de forma directe y debidamente en el proyecto."]
["5.  Sólo con carácter excepcional, los/as empresarios/arias individuales que no tienen personas trabajadores en plantilla"]
["     podrán acreditar los trabajos mediante una declaración responsable acompañada de las declaraciones IRPF (modelo 130) del ejercicio corriente. "]
["     El precio/hora imputado al proyecto subvencionado no podrá superar la cantidad resultante de dividir los rendimeintos anuales netos del empresario/aria individual por 1800."]
["6. En ningún caso se considerarán gastos subvencionables:"]
["- Los impuestos indirectos cuando sean susceptibles de recuperación o compensación, ni los impuestos sobre la renta. "]
["- Los gastos de inversión, incluidas las adquisiciones de bienes muebles. "]
["- Los gastos realizados con fecha anterior al inicio del proyecto y fecha posterior a la fecha de finalización del proyecto. "]
["- Otros gastos Que se indiquen en la convocatoria."]